[Event "Titled Tuesday Blitz January 10 Early 2023"]
[White "Rozman, Levy"]
[Black "Barrientos, Sergio E"]
[WhiteFideId "2039877"]
[BlackFideId "4401824"]
[WhiteElo "2322"]
[BlackElo "2479"]
[Result "0-1"]
[Round "09"]
[TimeControl "180+2"]
[Date "2023.01.10"]
[WhiteClock "0:00:01"]
[BlackClock "0:00:16"]

1. e4 {[%clk 0:03:00]}  c5 {[%clk 0:02:58]} 2. a3 {[%clk 0:03:00]}  d5 {[%clk 0:02:55]} 3. exd5 {[%clk 0:03:00]}  Nf6 {[%clk 0:02:53]} 4. Nf3 {[%clk 0:03:01]}  Qxd5 {[%clk 0:02:51]} 5. Nc3 {[%clk 0:03:01]}  Qd8 {[%clk 0:02:51]} 6. Bb5+ {[%clk 0:03:01]}  Bd7 {[%clk 0:02:50]} 7. d4 {[%clk 0:02:56]}  a6 {[%clk 0:02:49]} 8. Bxd7+ {[%clk 0:02:51]}  Nbxd7 {[%clk 0:02:49]} 9. O-O {[%clk 0:02:51]}  cxd4 {[%clk 0:02:48]} 10. Qxd4 {[%clk 0:02:50]}  e6 {[%clk 0:02:47]} 11. Bg5 {[%clk 0:02:50]}  Be7 {[%clk 0:02:44]} 12. Rad1 {[%clk 0:02:50]}  Qc7 {[%clk 0:02:43]} 13. Bf4 {[%clk 0:02:42]}  Qc6 {[%clk 0:02:38]} 14. Rfe1 {[%clk 0:02:34]}  O-O {[%clk 0:02:38]} 15. Ng5 {[%clk 0:02:28]}  Rac8 {[%clk 0:02:32]} 16. Qd3 {[%clk 0:02:21]}  Rfd8 {[%clk 0:02:24]} 17. Qh3 {[%clk 0:02:16]}  Nf8 {[%clk 0:02:13]} 18. Rd3 {[%clk 0:02:00]}  Nd5 {[%clk 0:01:57]} 19. Nxd5 {[%clk 0:01:47]}  Bxg5 {[%clk 0:01:44]} 20. Nb4 {[%clk 0:01:32]}  Qb5 {[%clk 0:01:35]} 21. Re5 {[%clk 0:01:20]}  Rxd3 {[%clk 0:01:03]} 22. Nxd3 {[%clk 0:01:19]}  Qd7 {[%clk 0:00:50]} 23. Rxg5 {[%clk 0:01:06]}  Rxc2 {[%clk 0:00:49]} 24. Qe3 {[%clk 0:00:31]}  f6 {[%clk 0:00:45]} 25. Rg3 {[%clk 0:00:24]}  e5 {[%clk 0:00:45]} 26. Ne1 {[%clk 0:00:07]}  Rxb2 {[%clk 0:00:32]} 27. Qc1 {[%clk 0:00:05]}  exf4 {[%clk 0:00:27]} 28. Rd3 {[%clk 0:00:06]}  Qe6 {[%clk 0:00:22]} 29. Rd1 {[%clk 0:00:03]}  Re2 {[%clk 0:00:21]} 30. Nd3 {[%clk 0:00:02]}  g5 {[%clk 0:00:20]} 31. h3 {[%clk 0:00:03]}  Ng6 {[%clk 0:00:19]} 32. Qc7 {[%clk 0:00:02]}  Qf7 {[%clk 0:00:17]} 33. Qb8+ {[%clk 0:00:02]}  Kg7 {[%clk 0:00:18]} 34. Nc5 {[%clk 0:00:03]}  Re8 {[%clk 0:00:18]} 35. Qa7 {[%clk 0:00:03]}  Re7 {[%clk 0:00:18]} 36. Rd8 {[%clk 0:00:03]}  Qc4 {[%clk 0:00:17]} 37. Rc8 {[%clk 0:00:02]}  Nh4 {[%clk 0:00:17]} 38. Kh2 {[%clk 0:00:03]}  Qd5 {[%clk 0:00:16]} 39. f3 {[%clk 0:00:02]}  Qd2 {[%clk 0:00:16]} 40. Ne6+ {[%clk 0:00:02]}  Kh6 {[%clk 0:00:16]} 41. Qg1 {[%clk 0:00:01]}  Rxe6 {[%clk 0:00:17]} 42. Qf1 {[%clk 0:00:01]}  Re1 {[%clk 0:00:16]} 0-1


[Site "https://www.chess.com"]

[Event "Titled Tuesday Blitz January 10 Early 2023"]
[White "Dehtiarov, Roman"]
[Black "Indjic, Aleksandar"]
[WhiteFideId "14186640"]
[BlackFideId "911925"]
[WhiteElo "2289"]
[BlackElo "2618"]
[Result "1/2-1/2"]
[Round "09"]
[TimeControl "180+2"]
[Date "2023.01.10"]
[WhiteClock "0:01:13"]
[BlackClock "0:00:47"]

1. e4 {[%clk 0:02:55]}  c6 {[%clk 0:03:00]} 2. Nc3 {[%clk 0:02:54]}  d5 {[%clk 0:03:01]} 3. Nf3 {[%clk 0:02:55]}  Bg4 {[%clk 0:03:01]} 4. h3 {[%clk 0:02:55]}  Bxf3 {[%clk 0:03:01]} 5. Qxf3 {[%clk 0:02:56]}  e6 {[%clk 0:03:01]} 6. d3 {[%clk 0:02:56]}  Bc5 {[%clk 0:03:01]} 7. Be2 {[%clk 0:02:55]}  Ne7 {[%clk 0:03:00]} 8. O-O {[%clk 0:02:55]}  Nd7 {[%clk 0:02:58]} 9. Bf4 {[%clk 0:02:55]}  O-O {[%clk 0:02:56]} 10. Qg3 {[%clk 0:02:55]}  Ng6 {[%clk 0:02:50]} 11. Rad1 {[%clk 0:02:46]}  d4 {[%clk 0:02:46]} 12. Nb1 {[%clk 0:02:45]}  Nxf4 {[%clk 0:02:45]} 13. Qxf4 {[%clk 0:02:46]}  e5 {[%clk 0:02:44]} 14. Qg3 {[%clk 0:02:46]}  Bd6 {[%clk 0:02:44]} 15. Nd2 {[%clk 0:02:45]}  b5 {[%clk 0:02:44]} 16. Bg4 {[%clk 0:02:44]}  Nf6 {[%clk 0:02:43]} 17. h4 {[%clk 0:02:43]}  Qe7 {[%clk 0:02:41]} 18. h5 {[%clk 0:02:42]}  h6 {[%clk 0:02:40]} 19. Nf3 {[%clk 0:02:42]}  Kh8 {[%clk 0:02:34]} 20. Nh4 {[%clk 0:02:42]}  Nh7 {[%clk 0:02:29]} 21. Nf5 {[%clk 0:02:37]}  Qf6 {[%clk 0:02:29]} 22. Nxd6 {[%clk 0:02:37]}  Qxd6 {[%clk 0:02:30]} 23. f4 {[%clk 0:02:37]}  Rae8 {[%clk 0:02:24]} 24. fxe5 {[%clk 0:02:37]}  Rxe5 {[%clk 0:02:17]} 25. Rf5 {[%clk 0:02:35]}  f6 {[%clk 0:02:17]} 26. Rdf1 {[%clk 0:02:34]}  Rfe8 {[%clk 0:02:13]} 27. Rxe5 {[%clk 0:02:31]}  Qxe5 {[%clk 0:02:01]} 28. Qxe5 {[%clk 0:02:31]}  Rxe5 {[%clk 0:02:02]} 29. Bf5 {[%clk 0:02:31]}  Nf8 {[%clk 0:01:59]} 30. c3 {[%clk 0:02:29]}  dxc3 {[%clk 0:01:58]} 31. bxc3 {[%clk 0:02:30]}  Kg8 {[%clk 0:01:56]} 32. d4 {[%clk 0:02:29]}  Re7 {[%clk 0:01:56]} 33. a4 {[%clk 0:02:27]}  Kf7 {[%clk 0:01:50]} 34. axb5 {[%clk 0:02:26]}  cxb5 {[%clk 0:01:51]} 35. Ra1 {[%clk 0:02:26]}  Rc7 {[%clk 0:01:49]} 36. Ra6 {[%clk 0:02:22]}  Rb7 {[%clk 0:01:48]} 37. Kf2 {[%clk 0:02:22]}  Ke7 {[%clk 0:01:47]} 38. d5 {[%clk 0:02:21]}  Nd7 {[%clk 0:01:42]} 39. Ke3 {[%clk 0:02:21]}  Nb6 {[%clk 0:01:32]} 40. Kd3 {[%clk 0:02:13]}  Kd6 {[%clk 0:01:30]} 41. Kd4 {[%clk 0:02:02]}  Rc7 {[%clk 0:01:25]} 42. Ra5 {[%clk 0:01:57]}  Rc4+ {[%clk 0:01:21]} 43. Kd3 {[%clk 0:01:57]}  Ra4 {[%clk 0:01:20]} 44. Rxb5 {[%clk 0:01:56]}  Ra2 {[%clk 0:01:20]} 45. c4 {[%clk 0:01:51]}  Na4 {[%clk 0:01:18]} 46. g4 {[%clk 0:01:36]}  Nc5+ {[%clk 0:01:03]} 47. Kc3 {[%clk 0:01:36]}  Ra3+ {[%clk 0:00:59]} 48. Kc2 {[%clk 0:01:35]}  Re3 {[%clk 0:00:56]} 49. Kd2 {[%clk 0:01:25]}  Rb3 {[%clk 0:00:55]} 50. Ra5 {[%clk 0:01:24]}  a6 {[%clk 0:00:54]} 51. Ra1 {[%clk 0:01:16]}  Ke5 {[%clk 0:00:50]} 52. Kc2 {[%clk 0:01:14]}  Rb4 {[%clk 0:00:48]} 53. Kc3 {[%clk 0:01:13]}  Rb3+ {[%clk 0:00:48]} 54. Kc2 {[%clk 0:01:13]}  Rb4 {[%clk 0:00:48]} 55. Kc3 {[%clk 0:01:13]}  Rb3+ {[%clk 0:00:47]} 56. Kc2 {[%clk 0:01:13]} 1/2-1/2


[Site "https://www.chess.com"]

[Event "Titled Tuesday Blitz January 10 Early 2023"]
[White "Mikhailovsky, Vladimir"]
[Black "Piesik, Piotr"]
[WhiteFideId "34105414"]
[BlackFideId "1136194"]
[WhiteElo "2215"]
[BlackElo "2426"]
[Result "1-0"]
[Round "09"]
[TimeControl "180+2"]
[Date "2023.01.10"]
[WhiteClock "0:01:06"]
[BlackClock "0:02:10"]

1. d4 {[%clk 0:03:00]}  c5 {[%clk 0:02:54]} 2. e4 {[%clk 0:02:49]}  cxd4 {[%clk 0:02:54]} 3. c3 {[%clk 0:02:50]}  d5 {[%clk 0:02:51]} 4. exd5 {[%clk 0:02:49]}  Qxd5 {[%clk 0:02:50]} 5. cxd4 {[%clk 0:02:49]}  Nc6 {[%clk 0:02:46]} 6. Nf3 {[%clk 0:02:49]}  Bg4 {[%clk 0:02:42]} 7. Nc3 {[%clk 0:02:48]}  Qa5 {[%clk 0:02:41]} 8. d5 {[%clk 0:02:31]}  Rd8 {[%clk 0:02:41]} 9. Bd2 {[%clk 0:02:25]}  Nb4 {[%clk 0:02:27]} 10. a3 {[%clk 0:01:39]}  Na6 {[%clk 0:02:24]} 11. Nb5 {[%clk 0:01:16]}  Qb6 {[%clk 0:02:24]} 12. Be3 {[%clk 0:01:16]}  Qg6 {[%clk 0:02:15]} 13. Qa4 {[%clk 0:01:06]}  Bd7 {[%clk 0:02:10]} 14. Qxa6 {[%clk 0:01:06]} 1-0


[Site "https://www.chess.com"]

[Event "Titled Tuesday Blitz January 10 Early 2023"]
[White "Mohamed Anees M"]
[Black "Aradhya, Garg"]
[WhiteFideId "35065815"]
[BlackFideId "25006746"]
[WhiteElo "2315"]
[BlackElo "2284"]
[Result "1-0"]
[Round "09"]
[TimeControl "180+2"]
[Date "2023.01.10"]
[WhiteClock "0:01:01"]
[BlackClock "0:00:13"]

1. e4 {[%clk 0:03:00]}  e5 {[%clk 0:02:59]} 2. Nf3 {[%clk 0:03:00]}  Nc6 {[%clk 0:03:00]} 3. d4 {[%clk 0:03:01]}  exd4 {[%clk 0:02:59]} 4. Nxd4 {[%clk 0:03:01]}  Qf6 {[%clk 0:02:59]} 5. Nxc6 {[%clk 0:02:56]}  Bc5 {[%clk 0:02:55]} 6. Qe2 {[%clk 0:02:50]}  dxc6 {[%clk 0:02:14]} 7. Nc3 {[%clk 0:02:49]}  Ne7 {[%clk 0:01:55]} 8. Be3 {[%clk 0:02:47]}  Bb4 {[%clk 0:01:55]} 9. Bd2 {[%clk 0:02:42]}  Bc5 {[%clk 0:01:54]} 10. Be3 {[%clk 0:02:41]}  Bb4 {[%clk 0:01:54]} 11. Qc4 {[%clk 0:02:34]}  a5 {[%clk 0:01:49]} 12. Bd4 {[%clk 0:02:26]}  Qf4 {[%clk 0:01:41]} 13. Qd3 {[%clk 0:02:05]}  O-O {[%clk 0:01:37]} 14. a3 {[%clk 0:02:04]}  Bxc3+ {[%clk 0:01:36]} 15. Bxc3 {[%clk 0:02:05]}  Nd5 {[%clk 0:01:24]} 16. exd5 {[%clk 0:01:55]}  Re8+ {[%clk 0:01:25]} 17. Be2 {[%clk 0:01:55]}  Bg4 {[%clk 0:01:24]} 18. f3 {[%clk 0:01:50]}  c5 {[%clk 0:00:37]} 19. fxg4 {[%clk 0:01:44]}  Qxg4 {[%clk 0:00:37]} 20. Qf3 {[%clk 0:01:30]}  Qg6 {[%clk 0:00:37]} 21. O-O {[%clk 0:01:28]}  Re7 {[%clk 0:00:37]} 22. Bd3 {[%clk 0:01:27]}  Qd6 {[%clk 0:00:36]} 23. Rae1 {[%clk 0:01:23]}  c4 {[%clk 0:00:33]} 24. Rxe7 {[%clk 0:01:19]}  Qxe7 {[%clk 0:00:33]} 25. Qe4 {[%clk 0:01:15]}  Qxe4 {[%clk 0:00:26]} 26. Bxe4 {[%clk 0:01:15]}  Re8 {[%clk 0:00:26]} 27. Bf3 {[%clk 0:01:14]}  b6 {[%clk 0:00:24]} 28. Re1 {[%clk 0:01:14]}  Rd8 {[%clk 0:00:25]} 29. Re7 {[%clk 0:01:12]}  Rc8 {[%clk 0:00:24]} 30. Be5 {[%clk 0:01:11]}  Kf8 {[%clk 0:00:20]} 31. Rxc7 {[%clk 0:01:10]}  Re8 {[%clk 0:00:20]} 32. Bd6+ {[%clk 0:01:09]}  Kg8 {[%clk 0:00:19]} 33. Bg3 {[%clk 0:01:09]}  f5 {[%clk 0:00:17]} 34. d6 {[%clk 0:01:09]}  g5 {[%clk 0:00:17]} 35. Bd5+ {[%clk 0:01:08]}  Kf8 {[%clk 0:00:16]} 36. d7 {[%clk 0:01:08]}  Rd8 {[%clk 0:00:16]} 37. Bd6+ {[%clk 0:01:07]}  Kg7 {[%clk 0:00:17]} 38. Be7 {[%clk 0:01:07]}  Rxd7 {[%clk 0:00:17]} 39. Rxd7 {[%clk 0:01:07]}  Kg6 {[%clk 0:00:18]} 40. Rd6+ {[%clk 0:01:06]}  Kh5 {[%clk 0:00:18]} 41. Bf7+ {[%clk 0:01:06]}  Kg4 {[%clk 0:00:19]} 42. Kf2 {[%clk 0:01:05]}  f4 {[%clk 0:00:19]} 43. h3+ {[%clk 0:01:02]}  Kf5 {[%clk 0:00:18]} 44. Kf3 {[%clk 0:01:01]}  g4+ {[%clk 0:00:13]} 45. hxg4+ {[%clk 0:01:01]}  Ke5 {[%clk 0:00:13]} 46. Rd5# {[%clk 0:01:01]} 1-0


[Site "https://www.chess.com"]

[Event "Titled Tuesday Blitz January 10 Early 2023"]
[White "Royal, Shreyas"]
[Black "Samunenkov, Ihor"]
[WhiteFideId "448869"]
[BlackFideId "14187086"]
[WhiteElo "2438"]
[BlackElo "2501"]
[Result "0-1"]
[Round "09"]
[TimeControl "180+2"]
[Date "2023.01.10"]
[WhiteClock "0:00:26"]
[BlackClock "0:00:21"]

1. d4 {[%clk 0:03:00]}  d5 {[%clk 0:02:55]} 2. c4 {[%clk 0:03:00]}  e6 {[%clk 0:02:55]} 3. Nc3 {[%clk 0:02:59]}  a6 {[%clk 0:02:52]} 4. Nf3 {[%clk 0:02:56]}  dxc4 {[%clk 0:02:52]} 5. a4 {[%clk 0:02:50]}  Nc6 {[%clk 0:02:48]} 6. e4 {[%clk 0:02:39]}  Na5 {[%clk 0:02:47]} 7. Be3 {[%clk 0:02:35]}  Nf6 {[%clk 0:02:44]} 8. Qc2 {[%clk 0:02:35]}  Be7 {[%clk 0:02:19]} 9. Be2 {[%clk 0:02:31]}  O-O {[%clk 0:02:20]} 10. O-O {[%clk 0:02:30]}  c6 {[%clk 0:02:10]} 11. Rad1 {[%clk 0:02:29]}  b5 {[%clk 0:02:06]} 12. d5 {[%clk 0:02:08]}  exd5 {[%clk 0:01:47]} 13. exd5 {[%clk 0:02:03]}  Nxd5 {[%clk 0:01:46]} 14. axb5 {[%clk 0:01:37]}  axb5 {[%clk 0:01:44]} 15. Bd4 {[%clk 0:01:27]}  Nb3 {[%clk 0:01:37]} 16. Be5 {[%clk 0:01:23]}  Be6 {[%clk 0:01:15]} 17. Qe4 {[%clk 0:01:05]}  Bf6 {[%clk 0:01:10]} 18. h4 {[%clk 0:00:55]}  h6 {[%clk 0:01:06]} 19. Bxf6 {[%clk 0:00:50]}  Qxf6 {[%clk 0:01:06]} 20. Ne5 {[%clk 0:00:50]}  Nxc3 {[%clk 0:00:41]} 21. bxc3 {[%clk 0:00:51]}  Bd5 {[%clk 0:00:40]} 22. Rxd5 {[%clk 0:00:45]}  cxd5 {[%clk 0:00:40]} 23. Qxd5 {[%clk 0:00:46]}  Rfd8 {[%clk 0:00:31]} 24. Qxb5 {[%clk 0:00:46]}  Ra5 {[%clk 0:00:30]} 25. Nd7 {[%clk 0:00:26]}  Rxb5 {[%clk 0:00:30]} 26. Nxf6+ {[%clk 0:00:27]}  gxf6 {[%clk 0:00:31]} 27. Bxc4 {[%clk 0:00:27]}  Rb6 {[%clk 0:00:30]} 28. Re1 {[%clk 0:00:27]}  Nc5 {[%clk 0:00:25]} 29. Re7 {[%clk 0:00:26]}  Ne6 {[%clk 0:00:26]} 30. f4 {[%clk 0:00:26]}  Rc6 {[%clk 0:00:24]} 31. Ba2 {[%clk 0:00:26]}  Rc7 {[%clk 0:00:21]} 0-1


[Site "https://www.chess.com"]

[Event "Titled Tuesday Blitz January 10 Early 2023"]
[White "Srebrnic, Marko"]
[Black "Orozbaev, Eldiar"]
[WhiteFideId "14603616"]
[BlackFideId "13802240"]
[WhiteElo "2366"]
[BlackElo "2235"]
[Result "0-1"]
[Round "09"]
[TimeControl "180+2"]
[Date "2023.01.10"]
[WhiteClock "0:02:03"]
[BlackClock "0:02:05"]

1. e4 {[%clk 0:03:00]}  e6 {[%clk 0:02:59]} 2. d4 {[%clk 0:02:57]}  d5 {[%clk 0:02:57]} 3. Nc3 {[%clk 0:02:56]}  Nf6 {[%clk 0:02:57]} 4. Bg5 {[%clk 0:02:56]}  dxe4 {[%clk 0:02:56]} 5. Nxe4 {[%clk 0:02:56]}  Be7 {[%clk 0:02:56]} 6. Bxf6 {[%clk 0:02:56]}  gxf6 {[%clk 0:02:57]} 7. Nf3 {[%clk 0:02:57]}  f5 {[%clk 0:02:56]} 8. Ng3 {[%clk 0:02:55]}  h5 {[%clk 0:02:55]} 9. h4 {[%clk 0:02:52]}  c5 {[%clk 0:02:53]} 10. Bb5+ {[%clk 0:02:48]}  Bd7 {[%clk 0:02:51]} 11. Qe2 {[%clk 0:02:48]}  Qa5+ {[%clk 0:02:50]} 12. c3 {[%clk 0:02:39]}  Qxb5 {[%clk 0:02:45]} 13. Qe5 {[%clk 0:02:38]}  f6 {[%clk 0:02:42]} 14. Qf4 {[%clk 0:02:35]}  Nc6 {[%clk 0:02:41]} 15. O-O-O {[%clk 0:02:26]}  cxd4 {[%clk 0:02:35]} 16. cxd4 {[%clk 0:02:17]}  Nb4 {[%clk 0:02:30]} 17. Kb1 {[%clk 0:02:08]}  Qc4 {[%clk 0:02:16]} 18. a3 {[%clk 0:02:04]}  Qa2+ {[%clk 0:02:12]} 19. Kc1 {[%clk 0:02:04]}  Rc8+ {[%clk 0:02:13]} 20. Kd2 {[%clk 0:02:05]}  Qxb2+ {[%clk 0:02:13]} 21. Ke1 {[%clk 0:02:03]}  Nd5 {[%clk 0:02:05]} 0-1


[Site "https://www.chess.com"]

[Event "Titled Tuesday Blitz January 10 Early 2023"]
[White "Garakov, Mikhael"]
[Black "Starozhilov, Leonid"]
[WhiteFideId "4169034"]
[BlackFideId "14106752"]
[WhiteElo "2447"]
[BlackElo "2313"]
[Result "1-0"]
[Round "09"]
[TimeControl "180+2"]
[Date "2023.01.10"]
[WhiteClock "0:00:16"]
[BlackClock "0:00:06"]

1. e4 {[%clk 0:03:00]}  Nc6 {[%clk 0:02:59]} 2. Nf3 {[%clk 0:02:59]}  d6 {[%clk 0:03:00]} 3. d4 {[%clk 0:02:58]}  Nf6 {[%clk 0:03:00]} 4. Bd3 {[%clk 0:02:52]}  g6 {[%clk 0:02:56]} 5. O-O {[%clk 0:02:51]}  Bg7 {[%clk 0:02:56]} 6. h3 {[%clk 0:02:50]}  O-O {[%clk 0:02:55]} 7. Re1 {[%clk 0:02:50]}  e5 {[%clk 0:02:55]} 8. d5 {[%clk 0:02:50]}  Ne7 {[%clk 0:02:53]} 9. c4 {[%clk 0:02:50]}  c5 {[%clk 0:02:47]} 10. Nc3 {[%clk 0:02:38]}  Nh5 {[%clk 0:02:44]} 11. Rb1 {[%clk 0:02:37]}  a5 {[%clk 0:02:39]} 12. a3 {[%clk 0:02:37]}  b6 {[%clk 0:02:24]} 13. b4 {[%clk 0:02:35]}  axb4 {[%clk 0:02:20]} 14. axb4 {[%clk 0:02:35]}  h6 {[%clk 0:02:04]} 15. Bd2 {[%clk 0:02:14]}  Bd7 {[%clk 0:01:46]} 16. Qc1 {[%clk 0:02:07]}  Kh7 {[%clk 0:01:46]} 17. bxc5 {[%clk 0:01:47]}  bxc5 {[%clk 0:01:45]} 18. Nb5 {[%clk 0:01:47]}  Bc8 {[%clk 0:01:37]} 19. Qc2 {[%clk 0:01:42]}  g5 {[%clk 0:01:31]} 20. Nh2 {[%clk 0:01:27]}  Ng6 {[%clk 0:01:30]} 21. Ra1 {[%clk 0:01:20]}  Rxa1 {[%clk 0:01:21]} 22. Rxa1 {[%clk 0:01:20]}  Nhf4 {[%clk 0:01:21]} 23. Bf1 {[%clk 0:01:18]}  f5 {[%clk 0:01:18]} 24. g3 {[%clk 0:01:16]}  fxe4 {[%clk 0:01:04]} 25. gxf4 {[%clk 0:01:16]}  exf4 {[%clk 0:01:04]} 26. Ra7 {[%clk 0:01:14]}  Bf5 {[%clk 0:00:57]} 27. Bc3 {[%clk 0:01:10]}  Ne5 {[%clk 0:00:43]} 28. Ng4 {[%clk 0:01:03]}  Re8 {[%clk 0:00:16]} 29. Qb2 {[%clk 0:00:56]}  Bxg4 {[%clk 0:00:14]} 30. hxg4 {[%clk 0:00:53]}  Qc8 {[%clk 0:00:15]} 31. Bxe5 {[%clk 0:00:41]}  Qxg4+ {[%clk 0:00:12]} 32. Kh2 {[%clk 0:00:21]}  Rxe5 {[%clk 0:00:10]} 33. Nxd6 {[%clk 0:00:17]}  Qh4+ {[%clk 0:00:10]} 34. Bh3 {[%clk 0:00:17]}  Re7 {[%clk 0:00:06]} 35. Rxe7 {[%clk 0:00:16]} 1-0


[Site "https://www.chess.com"]

[Event "Titled Tuesday Blitz January 10 Early 2023"]
[White "Arabidze, Meri"]
[Black "Kazancev, Valerij M"]
[WhiteFideId "13604040"]
[BlackFideId "4179609"]
[WhiteElo "2441"]
[BlackElo "2313"]
[Result "1/2-1/2"]
[Round "09"]
[TimeControl "180+2"]
[Date "2023.01.10"]
[WhiteClock "0:00:03"]
[BlackClock "0:00:13"]

1. d4 {[%clk 0:02:58]}  g6 {[%clk 0:02:59]} 2. g3 {[%clk 0:02:57]}  Bg7 {[%clk 0:02:59]} 3. Bg2 {[%clk 0:02:57]}  h5 {[%clk 0:03:00]} 4. Nf3 {[%clk 0:02:58]}  c5 {[%clk 0:03:00]} 5. d5 {[%clk 0:02:56]}  d6 {[%clk 0:02:54]} 6. Nc3 {[%clk 0:02:56]}  a6 {[%clk 0:02:54]} 7. a4 {[%clk 0:02:55]}  Nh6 {[%clk 0:02:53]} 8. Bg5 {[%clk 0:02:53]}  Nd7 {[%clk 0:02:50]} 9. e4 {[%clk 0:02:52]}  Rb8 {[%clk 0:02:50]} 10. Qe2 {[%clk 0:02:50]}  b5 {[%clk 0:02:36]} 11. axb5 {[%clk 0:02:50]}  axb5 {[%clk 0:02:37]} 12. Nxb5 {[%clk 0:02:50]}  Bxb2 {[%clk 0:02:37]} 13. Ra2 {[%clk 0:02:12]}  Bf6 {[%clk 0:02:04]} 14. O-O {[%clk 0:02:04]}  Bxg5 {[%clk 0:01:58]} 15. Nxg5 {[%clk 0:02:05]}  O-O {[%clk 0:01:58]} 16. f4 {[%clk 0:01:50]}  c4 {[%clk 0:01:47]} 17. Nd4 {[%clk 0:01:42]}  Qb6 {[%clk 0:01:47]} 18. c3 {[%clk 0:01:42]}  Nc5 {[%clk 0:01:22]} 19. f5 {[%clk 0:01:42]}  e5 {[%clk 0:01:02]} 20. fxe6 {[%clk 0:01:37]}  fxe6 {[%clk 0:01:00]} 21. Rxf8+ {[%clk 0:01:33]}  Kxf8 {[%clk 0:01:01]} 22. Qf2+ {[%clk 0:01:29]}  Kg7 {[%clk 0:01:01]} 23. Ra1 {[%clk 0:01:15]}  Nd3 {[%clk 0:00:43]} 24. Ndxe6+ {[%clk 0:00:50]}  Bxe6 {[%clk 0:00:42]} 25. Nxe6+ {[%clk 0:00:48]}  Kg8 {[%clk 0:00:42]} 26. Qxb6 {[%clk 0:00:44]}  Rxb6 {[%clk 0:00:43]} 27. Rf1 {[%clk 0:00:35]}  Rb3 {[%clk 0:00:41]} 28. Rf8+ {[%clk 0:00:27]}  Kh7 {[%clk 0:00:41]} 29. Rd8 {[%clk 0:00:18]}  Ng4 {[%clk 0:00:33]} 30. Bf1 {[%clk 0:00:10]}  Rb1 {[%clk 0:00:31]} 31. Ng5+ {[%clk 0:00:08]}  Kg7 {[%clk 0:00:29]} 32. Rd7+ {[%clk 0:00:05]}  Kf8 {[%clk 0:00:28]} 33. Rf7+ {[%clk 0:00:04]}  Ke8 {[%clk 0:00:28]} 34. h4 {[%clk 0:00:03]}  Rc1 {[%clk 0:00:23]} 35. Rf3 {[%clk 0:00:02]}  Nge5 {[%clk 0:00:20]} 36. Rf6 {[%clk 0:00:01]}  Rxc3 {[%clk 0:00:20]} 37. Re6+ {[%clk 0:00:02]}  Kd7 {[%clk 0:00:20]} 38. Bh3 {[%clk 0:00:03]}  Rc1+ {[%clk 0:00:19]} 39. Kg2 {[%clk 0:00:03]}  Ng4 {[%clk 0:00:20]} 40. Bxg4 {[%clk 0:00:03]}  hxg4 {[%clk 0:00:21]} 41. Rxg6 {[%clk 0:00:03]}  Rc2+ {[%clk 0:00:20]} 42. Kg1 {[%clk 0:00:03]}  Rc1+ {[%clk 0:00:20]} 43. Kg2 {[%clk 0:00:03]}  c3 {[%clk 0:00:21]} 44. e5 {[%clk 0:00:04]}  c2 {[%clk 0:00:21]} 45. Rxd6+ {[%clk 0:00:03]}  Kc7 {[%clk 0:00:21]} 46. Rc6+ {[%clk 0:00:03]}  Kb7 {[%clk 0:00:22]} 47. e6 {[%clk 0:00:03]}  Nb4 {[%clk 0:00:19]} 48. Rc5 {[%clk 0:00:02]}  Re1 {[%clk 0:00:18]} 49. Ne4 {[%clk 0:00:01]}  Rxe4 {[%clk 0:00:16]} 50. h5 {[%clk 0:00:01]}  Nd3 {[%clk 0:00:14]} 51. Rc6 {[%clk 0:00:01]}  c1=Q {[%clk 0:00:13]} 52. Rxc1 {[%clk 0:00:01]}  Nxc1 {[%clk 0:00:14]} 53. h6 {[%clk 0:00:02]}  Re5 {[%clk 0:00:13]} 54. h7 {[%clk 0:00:02]}  Nd3 {[%clk 0:00:11]} 55. h8=Q {[%clk 0:00:02]}  Re2+ {[%clk 0:00:11]} 56. Kf1 {[%clk 0:00:02]}  Re1+ {[%clk 0:00:11]} 57. Kg2 {[%clk 0:00:02]}  Re2+ {[%clk 0:00:12]} 58. Kf1 {[%clk 0:00:03]}  Re1+ {[%clk 0:00:13]} 59. Kg2 {[%clk 0:00:03]}  Re2+ {[%clk 0:00:13]} 1/2-1/2


[Site "https://www.chess.com"]

[Event "Titled Tuesday Blitz January 10 Early 2023"]
[White "Klukin, Kirill"]
[Black "Flynn, Jacob"]
[WhiteFideId "24199273"]
[BlackFideId "2509393"]
[WhiteElo "2390"]
[BlackElo "2102"]
[Result "1-0"]
[Round "09"]
[TimeControl "180+2"]
[Date "2023.01.10"]
[WhiteClock "0:00:03"]
[BlackClock "0:00:56"]

1. b3 {[%clk 0:02:52]}  d5 {[%clk 0:02:59]} 2. Bb2 {[%clk 0:02:52]}  Bg4 {[%clk 0:03:00]} 3. h3 {[%clk 0:02:51]}  Bh5 {[%clk 0:03:00]} 4. g4 {[%clk 0:02:51]}  Bg6 {[%clk 0:03:01]} 5. Bg2 {[%clk 0:02:52]}  c6 {[%clk 0:02:59]} 6. Nf3 {[%clk 0:02:52]}  Nd7 {[%clk 0:02:59]} 7. d3 {[%clk 0:02:52]}  e6 {[%clk 0:02:59]} 8. Nbd2 {[%clk 0:02:52]}  Ngf6 {[%clk 0:02:59]} 9. Nh4 {[%clk 0:02:51]}  Bc5 {[%clk 0:02:49]} 10. e3 {[%clk 0:02:51]}  e5 {[%clk 0:02:46]} 11. Qe2 {[%clk 0:02:49]}  Bd6 {[%clk 0:02:43]} 12. O-O {[%clk 0:02:44]}  O-O {[%clk 0:02:42]} 13. f4 {[%clk 0:02:31]}  exf4 {[%clk 0:02:40]} 14. exf4 {[%clk 0:02:31]}  Re8 {[%clk 0:02:40]} 15. Qf2 {[%clk 0:02:31]}  h6 {[%clk 0:02:14]} 16. Rae1 {[%clk 0:01:43]}  Qc7 {[%clk 0:02:07]} 17. Nxg6 {[%clk 0:01:33]}  fxg6 {[%clk 0:02:07]} 18. Rxe8+ {[%clk 0:01:24]}  Rxe8 {[%clk 0:02:06]} 19. g5 {[%clk 0:01:25]}  hxg5 {[%clk 0:02:03]} 20. fxg5 {[%clk 0:01:25]}  Nh5 {[%clk 0:01:41]} 21. Qf7+ {[%clk 0:01:16]}  Kh7 {[%clk 0:01:40]} 22. Qxe8 {[%clk 0:00:50]}  Bh2+ {[%clk 0:01:40]} 23. Kh1 {[%clk 0:00:50]}  Ng3+ {[%clk 0:01:41]} 24. Kxh2 {[%clk 0:00:51]}  Nxf1+ {[%clk 0:01:42]} 25. Kg1 {[%clk 0:00:51]}  Nxd2 {[%clk 0:01:42]} 26. Qe7 {[%clk 0:00:35]}  Qb6+ {[%clk 0:01:22]} 27. Kh1 {[%clk 0:00:31]}  d4 {[%clk 0:00:59]} 28. Qxd7 {[%clk 0:00:30]}  Qc5 {[%clk 0:00:59]} 29. Qxd4 {[%clk 0:00:29]}  Qe7 {[%clk 0:00:59]} 30. Qf2 {[%clk 0:00:10]}  Nb1 {[%clk 0:00:58]} 31. Be4 {[%clk 0:00:07]}  Qe6 {[%clk 0:00:57]} 32. Qh4+ {[%clk 0:00:05]}  Kg8 {[%clk 0:00:57]} 33. Qg4 {[%clk 0:00:06]}  Qf7 {[%clk 0:00:56]} 34. Qf3 {[%clk 0:00:06]}  Qe7 {[%clk 0:00:56]} 35. Bxg6 {[%clk 0:00:04]}  Nd2 {[%clk 0:00:56]} 36. Qf2 {[%clk 0:00:03]}  Qxg5 {[%clk 0:00:55]} 37. Qf7+ {[%clk 0:00:02]}  Kh8 {[%clk 0:00:56]} 38. Qxg7# {[%clk 0:00:03]} 1-0


[Site "https://www.chess.com"]